[Event "*** Biggest EVER Titled Tuesday"]
[Site "Chess.com"]
[Date "2018.04.17"]
[Round "1"]
[White "TregubovP"]
[Black "MateusViageiro"]
[Result "1-0"]
[WhiteElo "2553"]
[BlackElo "2211"]
[TimeControl "180+2"]
[EndTime "13:09:04 PDT"]
[Termination "TregubovP won by checkmate"]

1. d4 {[%clk 0:02:56.8]} 1... Nf6 {[%clk 0:03:00]} 2. c4 {[%clk 0:02:58.2]} 2...
e6 {[%clk 0:03:00.9]} 3. Nc3 {[%clk 0:02:58.3]} 3... Bb4 {[%clk 0:02:56]} 4. e3
{[%clk 0:02:58.4]} 4... b6 {[%clk 0:02:56.1]} 5. Ne2 {[%clk 0:02:56.1]} 5... Bb7
{[%clk 0:02:53.6]} 6. a3 {[%clk 0:02:51.2]} 6... Bxc3+ {[%clk 0:02:54.2]} 7.
Nxc3 {[%clk 0:02:52.1]} 7... O-O {[%clk 0:02:50.9]} 8. d5 {[%clk 0:02:50.3]}
8... exd5 {[%clk 0:02:47.9]} 9. cxd5 {[%clk 0:02:50.6]} 9... d6 {[%clk
0:02:46.7]} 10. Be2 {[%clk 0:02:50.3]} 10... Re8 {[%clk 0:02:42.7]} 11. O-O
{[%clk 0:02:50.8]} 11... Nbd7 {[%clk 0:02:41.1]} 12. b4 {[%clk 0:02:46.7]} 12...
a5 {[%clk 0:02:40]} 13. Bb2 {[%clk 0:02:46]} 13... Ne5 {[%clk 0:02:22.3]} 14.
Qd4 {[%clk 0:02:36.5]} 14... Qe7 {[%clk 0:01:31.4]} 15. h3 {[%clk 0:02:35.3]}
15... Ng6 {[%clk 0:01:28.6]} 16. Bb5 {[%clk 0:02:34.6]} 16... Rec8 {[%clk
0:01:16.8]} 17. Rfe1 {[%clk 0:02:34.9]} 17... Qd8 {[%clk 0:00:54.8]} 18. Bc6
{[%clk 0:02:33.5]} 18... Bxc6 {[%clk 0:00:49.1]} 19. dxc6 {[%clk 0:02:34.3]}
19... Ne8 {[%clk 0:00:43.7]} 20. Nd5 {[%clk 0:02:33.3]} 20... Qg5 {[%clk
0:00:40.3]} 21. f4 {[%clk 0:02:12.8]} 21... Qg3 {[%clk 0:00:37.5]} 22. Qd2
{[%clk 0:02:03.1]} 22... Nh4 {[%clk 0:00:29.1]} 23. Qf2 {[%clk 0:02:03.3]} 23...
Qxf2+ {[%clk 0:00:29.2]} 24. Kxf2 {[%clk 0:02:03.6]} 24... Kf8 {[%clk 0:00:30]}
25. b5 {[%clk 0:02:03.7]} 25... Ng6 {[%clk 0:00:30.1]} 26. e4 {[%clk 0:01:55.5]}
26... Ne7 {[%clk 0:00:23.5]} 27. Ne3 {[%clk 0:01:49]} 27... Rd8 {[%clk
0:00:22.4]} 28. Rad1 {[%clk 0:01:47.9]} 28... a4 {[%clk 0:00:21.2]} 29. Bc3
{[%clk 0:01:47.4]} 29... f6 {[%clk 0:00:17.4]} 30. Kf3 {[%clk 0:01:47.8]} 30...
Kf7 {[%clk 0:00:18.8]} 31. g4 {[%clk 0:01:48.8]} 31... g6 {[%clk 0:00:20.3]} 32.
h4 {[%clk 0:01:48]} 32... Ng7 {[%clk 0:00:21.2]} 33. f5 {[%clk 0:01:42.9]} 33...
h5 {[%clk 0:00:21.9]} 34. g5 {[%clk 0:01:34.1]} 34... Ng8 {[%clk 0:00:16.6]} 35.
Kf4 {[%clk 0:01:31.7]} 35... gxf5 {[%clk 0:00:16.5]} 36. exf5 {[%clk 0:01:32.2]}
36... fxg5+ {[%clk 0:00:17.6]} 37. hxg5 {[%clk 0:01:30.8]} 37... Re8 {[%clk
0:00:19.5]} 38. Nd5 {[%clk 0:01:28.7]} 38... Rxe1 {[%clk 0:00:21.1]} 39. Rxe1
{[%clk 0:01:29.3]} 39... Rc8 {[%clk 0:00:21.3]} 40. g6+ {[%clk 0:01:25]} 40...
Kf8 {[%clk 0:00:20.9]} 41. f6 {[%clk 0:01:20.7]} 41... Ne8 {[%clk 0:00:16]} 42.
Kg5 {[%clk 0:01:12.6]} 42... h4 {[%clk 0:00:16.6]} 43. Rh1 {[%clk 0:01:03]}
43... h3 {[%clk 0:00:15]} 44. Rxh3 {[%clk 0:01:03.8]} 44... Nexf6 {[%clk
0:00:13.1]} 45. Nxf6 {[%clk 0:00:59.5]} 45... Ke7 {[%clk 0:00:06.3]} 46. Re3+
{[%clk 0:00:56.6]} 46... Kf8 {[%clk 0:00:04.3]} 47. Nh7# {[%clk 0:00:55.5]} 1-0

[Event "*** Biggest EVER Titled Tuesday"]
[Site "Chess.com"]
[Date "2018.04.17"]
[Round "1"]
[White "Goala"]
[Black "ChessQueen"]
[Result "1-0"]
[WhiteElo "2329"]
[BlackElo "2617"]
[TimeControl "180+2"]
[EndTime "13:09:05 PDT"]
[Termination "Goala won by resignation"]

1. d4 {[%clk 0:03:01.9]} 1... Nf6 {[%clk 0:02:59.8]} 2. c4 {[%clk 0:03:02.6]}
2... e6 {[%clk 0:03:00.4]} 3. Nf3 {[%clk 0:03:03.6]} 3... c5 {[%clk 0:03:00.6]}
4. d5 {[%clk 0:03:02.4]} 4... b5 {[%clk 0:03:01.5]} 5. dxe6 {[%clk 0:02:58]}
5... fxe6 {[%clk 0:02:59.7]} 6. cxb5 {[%clk 0:02:58.3]} 6... a6 {[%clk
0:02:58.9]} 7. Nc3 {[%clk 0:02:41.2]} 7... axb5 {[%clk 0:02:51.5]} 8. e4 {[%clk
0:02:42.7]} 8... b4 {[%clk 0:02:47.8]} 9. e5 {[%clk 0:02:43.2]} 9... bxc3 {[%clk
0:02:44.7]} 10. exf6 {[%clk 0:02:44.2]} 10... Qxf6 {[%clk 0:02:42.6]} 11. Bg5
{[%clk 0:02:38.5]} 11... Qf5 {[%clk 0:02:36.4]} 12. Bd3 {[%clk 0:02:35.5]} 12...
Qg4 {[%clk 0:02:32.7]} 13. h3 {[%clk 0:02:12.9]} 13... Qb4 {[%clk 0:02:18.3]}
14. O-O {[%clk 0:01:54.4]} 14... Nc6 {[%clk 0:01:55.3]} 15. bxc3 {[%clk
0:01:53.5]} 15... Qxc3 {[%clk 0:01:51.9]} 16. Rc1 {[%clk 0:01:43.4]} 16... Qa5
{[%clk 0:01:49.6]} 17. Be4 {[%clk 0:01:44.4]} 17... Qa4 {[%clk 0:01:33.6]} 18.
Qd3 {[%clk 0:01:34.7]} 18... Be7 {[%clk 0:01:13.3]} 19. Bxh7 {[%clk 0:01:24]}
19... Ba6 {[%clk 0:01:04.3]} 20. Qg6+ {[%clk 0:01:18]} 20... Kd8 {[%clk
0:01:05.3]} 21. Qxg7 {[%clk 0:01:16.5]} 21... Rxh7 {[%clk 0:00:53.1]} 22. Bxe7+
{[%clk 0:01:06.5]} 22... Nxe7 {[%clk 0:00:51.2]} 23. Qf8+ {[%clk 0:01:01]} 23...
Kc7 {[%clk 0:00:49.2]} 24. Qxa8 {[%clk 0:01:02.9]} 24... Nc6 {[%clk 0:00:16.1]}
25. Rxc5 {[%clk 0:00:53]} 25... Rg7 {[%clk 0:00:16.9]} 26. Rfc1 {[%clk
0:00:49.8]} 26... Bb5 {[%clk 0:00:17.8]} 27. Qf8 {[%clk 0:00:42.7]} 27... Rg6
{[%clk 0:00:06.4]} 28. h4 {[%clk 0:00:41.3]} 28... Qg4 {[%clk 0:00:06.3]} 29.
Rg5 {[%clk 0:00:35.8]} 29... Rxg5 {[%clk 0:00:06.9]} 30. hxg5 {[%clk 0:00:37.7]}
30... Be2 {[%clk 0:00:07.7]} 31. Re1 {[%clk 0:00:30.9]} 31... Bxf3 {[%clk
0:00:08.3]} 32. Qxf3 {[%clk 0:00:32.5]} 32... Qxg5 {[%clk 0:00:09.8]} 33. a4
{[%clk 0:00:30.6]} 33... Qa5 {[%clk 0:00:10.2]} 34. Ra1 {[%clk 0:00:23.2]} 34...
Kc8 {[%clk 0:00:08.6]} 35. g3 {[%clk 0:00:21.6]} 35... Qe5 {[%clk 0:00:09.4]}
36. Rc1 {[%clk 0:00:17.4]} 36... Qb2 {[%clk 0:00:10.4]} 37. Qc3 {[%clk
0:00:16.5]} 37... Qa2 {[%clk 0:00:08.9]} 38. Qc4 {[%clk 0:00:17]} 38... Qa3
{[%clk 0:00:09.4]} 39. Rd1 {[%clk 0:00:12.6]} 39... Kc7 {[%clk 0:00:09.2]} 40.
Qd3 {[%clk 0:00:12.8]} 40... Qe7 {[%clk 0:00:08.8]} 41. Qb5 {[%clk 0:00:11.7]}
41... e5 {[%clk 0:00:09.2]} 42. a5 {[%clk 0:00:12.2]} 42... e4 {[%clk
0:00:10.1]} 43. Qb6+ {[%clk 0:00:08.4]} 43... Kc8 {[%clk 0:00:11.4]} 44. a6
{[%clk 0:00:09.3]} 44... e3 {[%clk 0:00:11.5]} 45. Qxe3 {[%clk 0:00:09.7]} 45...
Qxe3 {[%clk 0:00:10.9]} 46. fxe3 {[%clk 0:00:11.6]} 46... Na7 {[%clk 0:00:11.8]}
47. Rb1 {[%clk 0:00:11.5]} 47... Nc6 {[%clk 0:00:12.2]} 48. g4 {[%clk
0:00:12.2]} 1-0

[Event "*** Biggest EVER Titled Tuesday"]
[Site "Chess.com"]
[Date "2018.04.17"]
[Round "1"]
[White "Robin-Side"]
[Black "StoreySniper"]
[Result "0-1"]
[WhiteElo "2531"]
[BlackElo "2239"]
[TimeControl "180+2"]
[EndTime "13:09:17 PDT"]
[Termination "StoreySniper won on time"]

1. d4 {[%clk 0:02:58.1]} 1... g6 {[%clk 0:02:11]} 2. e4 {[%clk 0:02:57.7]} 2...
Bg7 {[%clk 0:02:08.4]} 3. Nc3 {[%clk 0:02:58.6]} 3... c5 {[%clk 0:02:09.4]} 4.
d5 {[%clk 0:02:59.2]} 4... d6 {[%clk 0:02:09.9]} 5. Be2 {[%clk 0:03:00]} 5... e5
{[%clk 0:02:10.6]} 6. dxe6 {[%clk 0:02:56.8]} 6... fxe6 {[%clk 0:02:10.2]} 7.
Nf3 {[%clk 0:02:52.7]} 7... Nc6 {[%clk 0:02:10.8]} 8. Bf4 {[%clk 0:02:51.6]}
8... e5 {[%clk 0:02:11.1]} 9. Bg5 {[%clk 0:02:52.6]} 9... Bf6 {[%clk 0:02:11.5]}
10. h4 {[%clk 0:02:51.5]} 10... Nd4 {[%clk 0:02:12.2]} 11. Nd5 {[%clk
0:02:42.7]} 11... Nxf3+ {[%clk 0:02:07.7]} 12. Bxf3 {[%clk 0:02:43.3]} 12...
Bxg5 {[%clk 0:02:09.1]} 13. hxg5 {[%clk 0:02:44.9]} 13... Be6 {[%clk 0:02:10.4]}
14. Qd2 {[%clk 0:02:27.8]} 14... Bxd5 {[%clk 0:02:07.2]} 15. Qxd5 {[%clk
0:02:28.5]} 15... Qd7 {[%clk 0:01:57.3]} 16. O-O-O {[%clk 0:02:20.5]} 16...
O-O-O {[%clk 0:01:57.7]} 17. Rh4 {[%clk 0:02:12.9]} 17... Kb8 {[%clk 0:01:57.5]}
18. Rdh1 {[%clk 0:01:56.9]} 18... Qe7 {[%clk 0:01:52.8]} 19. Kb1 {[%clk
0:01:52.8]} 19... a6 {[%clk 0:01:06.6]} 20. a4 {[%clk 0:01:52.2]} 20... Ka7
{[%clk 0:01:05.8]} 21. Bg4 {[%clk 0:01:33.6]} 21... Qxg5 {[%clk 0:00:50.8]} 22.
Rxh7 {[%clk 0:01:33.2]} 22... Ne7 {[%clk 0:00:44.9]} 23. Qe6 {[%clk 0:01:19.8]}
23... Rhe8 {[%clk 0:00:27.2]} 24. Bf3 {[%clk 0:00:32.1]} 24... Nc6 {[%clk
0:00:26.3]} 25. Qg4 {[%clk 0:00:26.3]} 25... Qd2 {[%clk 0:00:24.2]} 26. Qxg6
{[%clk 0:00:22.7]} 26... Nb4 {[%clk 0:00:14.8]} 27. Rc1 {[%clk 0:00:23]} 27...
Rh8 {[%clk 0:00:11.7]} 28. Bg4 {[%clk 0:00:13.9]} 28... Rxh7 {[%clk 0:00:11.6]}
29. Qxh7 {[%clk 0:00:15.7]} 29... Qxf2 {[%clk 0:00:09.7]} 30. Qc7 {[%clk
0:00:14.6]} 30... Rb8 {[%clk 0:00:06.7]} 31. Qxd6 {[%clk 0:00:14.7]} 31... Qd4
{[%clk 0:00:08]} 32. Qxd4 {[%clk 0:00:08.4]} 32... cxd4 {[%clk 0:00:09.1]} 33.
Bf5 {[%clk 0:00:09.6]} 33... d3 {[%clk 0:00:08.2]} 34. cxd3 {[%clk 0:00:09.9]}
34... Nxd3 {[%clk 0:00:10]} 35. Rd1 {[%clk 0:00:10.4]} 35... Nf4 {[%clk
0:00:09.8]} 36. g3 {[%clk 0:00:09.9]} 36... Ne2 {[%clk 0:00:11.2]} 37. g4 {[%clk
0:00:11.1]} 37... Nd4 {[%clk 0:00:12.6]} 38. g5 {[%clk 0:00:11.5]} 38... Rf8
{[%clk 0:00:13.8]} 39. Rf1 {[%clk 0:00:10.3]} 39... Ne6 {[%clk 0:00:12.9]} 40.
g6 {[%clk 0:00:10.8]} 40... Nf4 {[%clk 0:00:14.1]} 41. Ka2 {[%clk 0:00:07.4]}
41... Nxg6 {[%clk 0:00:14.3]} 42. Rc1 {[%clk 0:00:05.2]} 42... Nf4 {[%clk
0:00:14.9]} 43. Rc5 {[%clk 0:00:06.4]} 43... Nd3 {[%clk 0:00:14.8]} 44. Rc7
{[%clk 0:00:06.9]} 44... Nb4+ {[%clk 0:00:15.9]} 45. Kb3 {[%clk 0:00:07.7]}
45... Nc6 {[%clk 0:00:17]} 46. Be6 {[%clk 0:00:07]} 46... Nd4+ {[%clk
0:00:17.8]} 47. Kc4 {[%clk 0:00:07.3]} 47... Nxe6 {[%clk 0:00:19.6]} 48. Kd5
{[%clk 0:00:08.9]} 48... Nxc7+ {[%clk 0:00:19.5]} 0-1

[Event "*** Biggest EVER Titled Tuesday"]
[Site "Chess.com"]
[Date "2018.04.17"]
[Round "1"]
[White "xavielhumilde_1999"]
[Black "dreamist"]
[Result "1-0"]
[WhiteElo "2190"]
[BlackElo "2512"]
[TimeControl "180+2"]
[EndTime "13:09:21 PDT"]
[Termination "xavielhumilde_1999 won by checkmate"]

1. e4 {[%clk 0:02:11.3]} 1... c5 {[%clk 0:02:58]} 2. Nf3 {[%clk 0:02:12]} 2...
d6 {[%clk 0:02:58.7]} 3. d4 {[%clk 0:02:12.8]} 3... Nf6 {[%clk 0:02:59.2]} 4.
Nc3 {[%clk 0:02:12.7]} 4... cxd4 {[%clk 0:02:55.9]} 5. Nxd4 {[%clk 0:02:13.7]}
5... a6 {[%clk 0:02:57.3]} 6. f3 {[%clk 0:02:14.7]} 6... g6 {[%clk 0:02:56.7]}
7. Be3 {[%clk 0:02:15.2]} 7... Bg7 {[%clk 0:02:58.2]} 8. Qd2 {[%clk 0:02:16.2]}
8... Nbd7 {[%clk 0:02:59]} 9. O-O-O {[%clk 0:02:17.1]} 9... Qc7 {[%clk
0:02:53.9]} 10. Bh6 {[%clk 0:02:14.2]} 10... Bxh6 {[%clk 0:02:53.2]} 11. Qxh6
{[%clk 0:02:14.1]} 11... b5 {[%clk 0:02:53.9]} 12. Kb1 {[%clk 0:02:12.4]} 12...
Bb7 {[%clk 0:02:54.6]} 13. h4 {[%clk 0:02:10]} 13... Rc8 {[%clk 0:02:54.3]} 14.
Qd2 {[%clk 0:02:07.6]} 14... h5 {[%clk 0:02:37.5]} 15. a3 {[%clk 0:01:36.6]}
15... Ne5 {[%clk 0:02:28.4]} 16. Be2 {[%clk 0:01:07]} 16... Nfd7 {[%clk
0:02:22.3]} 17. f4 {[%clk 0:00:47.6]} 17... Nc4 {[%clk 0:02:22.2]} 18. Bxc4
{[%clk 0:00:48.8]} 18... Qxc4 {[%clk 0:02:20.6]} 19. Rhe1 {[%clk 0:00:45.9]}
19... Qc5 {[%clk 0:02:03.2]} 20. f5 {[%clk 0:00:29.4]} 20... Rg8 {[%clk
0:01:54.4]} 21. Qh6 {[%clk 0:00:25.5]} 21... Ne5 {[%clk 0:01:48.1]} 22. Qh7
{[%clk 0:00:24.6]} 22... Kd7 {[%clk 0:01:38.9]} 23. Nf3 {[%clk 0:00:25.3]} 23...
Nc4 {[%clk 0:01:24.7]} 24. Qxf7 {[%clk 0:00:22.3]} 24... Nxa3+ {[%clk
0:01:21.3]} 25. bxa3 {[%clk 0:00:21.9]} 25... Qxc3 {[%clk 0:01:16.5]} 26. Qe6+
{[%clk 0:00:22.7]} 26... Kc7 {[%clk 0:01:05.2]} 27. Rd3 {[%clk 0:00:23.4]} 27...
Qc4 {[%clk 0:00:58.8]} 28. Qxe7+ {[%clk 0:00:23.7]} 28... Kb8 {[%clk 0:00:59.9]}
29. Qxd6+ {[%clk 0:00:24.9]} 29... Ka8 {[%clk 0:01:00.9]} 30. Rd2 {[%clk
0:00:12.5]} 30... gxf5 {[%clk 0:00:49.8]} 31. exf5 {[%clk 0:00:13]} 31... Rg4
{[%clk 0:00:27.9]} 32. Ne5 {[%clk 0:00:11.8]} 32... Qf4 {[%clk 0:00:12.2]} 33.
Nxg4 {[%clk 0:00:11.5]} 33... Qxg4 {[%clk 0:00:13.5]} 34. Qd4 {[%clk 0:00:10.5]}
34... Qxf5 {[%clk 0:00:13.6]} 35. Rf2 {[%clk 0:00:11.6]} 35... Qg6 {[%clk
0:00:12.9]} 36. Re7 {[%clk 0:00:12.1]} 36... Qc6 {[%clk 0:00:08.4]} 37. Qd7
{[%clk 0:00:11.1]} 37... Qb6 {[%clk 0:00:08.2]} 38. Rf6 {[%clk 0:00:10.9]} 38...
Qa7 {[%clk 0:00:05.6]} 39. Rff7 {[%clk 0:00:11.2]} 39... Rb8 {[%clk 0:00:06.8]}
40. Qc7 {[%clk 0:00:12.5]} 40... b4 {[%clk 0:00:07.3]} 41. axb4 {[%clk
0:00:12.8]} 41... Qg1+ {[%clk 0:00:07.6]} 42. Kb2 {[%clk 0:00:13]} 42... Qd4+
{[%clk 0:00:08.5]} 43. Qc3 {[%clk 0:00:14]} 43... Qd6 {[%clk 0:00:09.3]} 44. Qc5
{[%clk 0:00:11.3]} 44... Qg6 {[%clk 0:00:06.6]} 45. b5 {[%clk 0:00:11.9]} 45...
Qg3 {[%clk 0:00:05]} 46. Ka2 {[%clk 0:00:11.2]} 46... Qg8 {[%clk 0:00:04.1]} 47.
bxa6 {[%clk 0:00:11.9]} 47... Bc6 {[%clk 0:00:03.5]} 48. Qa7# {[%clk 0:00:12.7]}
1-0

[Event "*** Biggest EVER Titled Tuesday"]
[Site "Chess.com"]
[Date "2018.04.17"]
[Round "1"]
[White "LyonBeast"]
[Black "Aygehovit1992"]
[Result "1-0"]
[WhiteElo "2801"]
[BlackElo "2410"]
[TimeControl "180+2"]
[EndTime "13:09:26 PDT"]
[Termination "LyonBeast won on time"]

1. e4 {[%clk 0:03:01.9]} 1... e5 {[%clk 0:02:59.3]} 2. Nf3 {[%clk 0:02:59]} 2...
Nc6 {[%clk 0:02:48.4]} 3. Bc4 {[%clk 0:02:55.1]} 3... Bc5 {[%clk 0:02:46.8]} 4.
c3 {[%clk 0:02:55.5]} 4... Nf6 {[%clk 0:02:46]} 5. d3 {[%clk 0:02:56.6]} 5... d6
{[%clk 0:02:44]} 6. O-O {[%clk 0:02:56.2]} 6... Bb6 {[%clk 0:02:40.4]} 7. h3
{[%clk 0:02:49.4]} 7... Ne7 {[%clk 0:02:20.5]} 8. Re1 {[%clk 0:02:47.6]} 8...
Ng6 {[%clk 0:02:20.1]} 9. Nbd2 {[%clk 0:02:45.6]} 9... O-O {[%clk 0:02:14]} 10.
Nf1 {[%clk 0:02:45.3]} 10... Be6 {[%clk 0:02:12.8]} 11. Ng3 {[%clk 0:02:36.7]}
11... Qd7 {[%clk 0:02:04.4]} 12. Bg5 {[%clk 0:02:33.4]} 12... Bxc4 {[%clk
0:01:48.2]} 13. dxc4 {[%clk 0:02:35.3]} 13... Qe6 {[%clk 0:01:49.6]} 14. a4
{[%clk 0:02:21.7]} 14... a5 {[%clk 0:01:49.2]} 15. b3 {[%clk 0:02:22.5]} 15...
Nf4 {[%clk 0:01:47.9]} 16. Ra2 {[%clk 0:02:13.6]} 16... h6 {[%clk 0:01:45.8]}
17. Bxf6 {[%clk 0:01:48]} 17... Qxf6 {[%clk 0:01:45.9]} 18. Kh2 {[%clk
0:01:46.2]} 18... g6 {[%clk 0:01:40.8]} 19. Nf1 {[%clk 0:01:39.7]} 19... c6
{[%clk 0:01:32.1]} 20. Rd2 {[%clk 0:01:39.3]} 20... Rad8 {[%clk 0:01:32]} 21. g3
{[%clk 0:01:30.4]} 21... Nh5 {[%clk 0:01:24.9]} 22. Kg2 {[%clk 0:01:31.4]} 22...
Ng7 {[%clk 0:01:23.6]} 23. Ne3 {[%clk 0:01:28.8]} 23... h5 {[%clk 0:01:24.1]}
24. h4 {[%clk 0:01:28]} 24... Qe7 {[%clk 0:01:22.5]} 25. Qc2 {[%clk 0:01:24.6]}
25... Ne6 {[%clk 0:01:23.3]} 26. Nh2 {[%clk 0:01:19]} 26... Nc5 {[%clk
0:01:16.5]} 27. Red1 {[%clk 0:01:17.5]} 27... Ne6 {[%clk 0:01:03.1]} 28. Nhf1
{[%clk 0:01:16]} 28... Rd7 {[%clk 0:00:55.4]} 29. Re2 {[%clk 0:00:51.6]} 29...
Rfd8 {[%clk 0:00:50.2]} 30. Nh2 {[%clk 0:00:52]} 30... Bxe3 {[%clk 0:00:28.4]}
31. Rxe3 {[%clk 0:00:53.9]} 31... d5 {[%clk 0:00:29.8]} 32. exd5 {[%clk
0:00:55]} 32... cxd5 {[%clk 0:00:31.1]} 33. cxd5 {[%clk 0:00:56.3]} 33... Rxd5
{[%clk 0:00:32.3]} 34. Rxd5 {[%clk 0:00:57.7]} 34... Rxd5 {[%clk 0:00:33.8]} 35.
Nf3 {[%clk 0:00:58.7]} 35... Qc7 {[%clk 0:00:32.1]} 36. Qe4 {[%clk 0:00:54.7]}
36... Rc5 {[%clk 0:00:17.5]} 37. c4 {[%clk 0:00:55.3]} 37... Nd4 {[%clk
0:00:05.1]} 38. Nxd4 {[%clk 0:00:50.2]} 38... exd4 {[%clk 0:00:06.4]} 39. Qxd4
{[%clk 0:00:52.1]} 39... Qc6+ {[%clk 0:00:07.7]} 40. Kg1 {[%clk 0:00:51.3]}
40... Rf5 {[%clk 0:00:08.4]} 41. Qd8+ {[%clk 0:00:51.7]} 41... Kg7 {[%clk
0:00:08.4]} 42. Re8 {[%clk 0:00:53.1]} 42... Qc5 {[%clk 0:00:03.7]} 43. Re3
{[%clk 0:00:31.6]} 43... Qc6 {[%clk 0:00:03.1]} 44. Qd2 {[%clk 0:00:29.2]} 44...
Qf6 {[%clk 0:00:03.4]} 45. Rd3 {[%clk 0:00:25.9]} 45... b6 {[%clk 0:00:04.2]}
46. Rd5 {[%clk 0:00:24.5]} 46... Rf3 {[%clk 0:00:03.9]} 47. Rd3 {[%clk
0:00:24.1]} 47... Rf5 {[%clk 0:00:04.5]} 48. Kg2 {[%clk 0:00:25.3]} 48... Qc6+
{[%clk 0:00:05.2]} 49. Rd5 {[%clk 0:00:25.8]} 49... Kg8 {[%clk 0:00:02.9]} 50.
Qd4 {[%clk 0:00:26.1]} 1-0

[Event "*** Biggest EVER Titled Tuesday"]
[Site "Chess.com"]
[Date "2018.04.17"]
[Round "1"]
[White "David_Paravyan"]
[Black "kikydu96"]
[Result "1-0"]
[WhiteElo "2690"]
[BlackElo "2357"]
[TimeControl "180+2"]
[EndTime "13:09:27 PDT"]
[Termination "David_Paravyan won by resignation"]

1. e4 {[%clk 0:03:01.4]} 1... e5 {[%clk 0:03:00.5]} 2. Nf3 {[%clk 0:03:02.3]}
2... Nc6 {[%clk 0:02:58.7]} 3. Bc4 {[%clk 0:03:03.4]} 3... Nf6 {[%clk
0:02:59.1]} 4. d3 {[%clk 0:03:03.9]} 4... Bc5 {[%clk 0:02:59.4]} 5. c3 {[%clk
0:03:04.7]} 5... d6 {[%clk 0:03:00.1]} 6. a4 {[%clk 0:03:05.6]} 6... a6 {[%clk
0:02:59.4]} 7. O-O {[%clk 0:03:05.7]} 7... Ba7 {[%clk 0:02:59.7]} 8. h3 {[%clk
0:03:04.6]} 8... h6 {[%clk 0:02:59.4]} 9. Re1 {[%clk 0:03:05.2]} 9... O-O {[%clk
0:03:00.1]} 10. a5 {[%clk 0:03:06.4]} 10... Nh5 {[%clk 0:02:59.7]} 11. d4 {[%clk
0:03:00.2]} 11... Qf6 {[%clk 0:03:00]} 12. Be3 {[%clk 0:02:59]} 12... Nf4 {[%clk
0:03:00.4]} 13. Bf1 {[%clk 0:02:32.8]} 13... g5 {[%clk 0:02:56.8]} 14. d5 {[%clk
0:02:17.3]} 14... Ne7 {[%clk 0:02:53]} 15. Nh2 {[%clk 0:02:16.8]} 15... Neg6
{[%clk 0:02:47.5]} 16. Ng4 {[%clk 0:02:15.8]} 16... Qg7 {[%clk 0:02:48.4]} 17.
Bxa7 {[%clk 0:02:16.1]} 17... Rxa7 {[%clk 0:02:49.1]} 18. g3 {[%clk 0:02:16.8]}
18... Nxh3+ {[%clk 0:02:38]} 19. Bxh3 {[%clk 0:02:16]} 19... h5 {[%clk
0:02:39.3]} 20. Ne3 {[%clk 0:02:05.8]} 20... Bxh3 {[%clk 0:02:37.9]} 21. Qxh5
{[%clk 0:02:05.1]} 21... g4 {[%clk 0:01:53.7]} 22. Nxg4 {[%clk 0:01:43.3]} 22...
Nf4 {[%clk 0:01:38]} 23. gxf4 {[%clk 0:01:44.2]} 23... Bxg4 {[%clk 0:01:35.3]}
24. Qg5 {[%clk 0:01:45.2]} 24... Qxg5 {[%clk 0:01:23.3]} 25. fxg5 {[%clk
0:01:46.9]} 25... Kg7 {[%clk 0:01:24.8]} 26. Nd2 {[%clk 0:01:47.2]} 26... Kg6
{[%clk 0:01:23.2]} 27. f3 {[%clk 0:01:47.2]} 27... Bd7 {[%clk 0:01:23.4]} 28.
Kf2 {[%clk 0:01:34.7]} 28... Rh8 {[%clk 0:01:22.7]} 29. Rh1 {[%clk 0:01:25]}
29... Raa8 {[%clk 0:01:21.7]} 30. f4 {[%clk 0:01:00.2]} 30... exf4 {[%clk
0:01:15.7]} 31. Kf3 {[%clk 0:00:55.8]} 31... Kxg5 {[%clk 0:01:14.9]} 32. Rag1+
{[%clk 0:00:54.9]} 32... Kf6 {[%clk 0:01:16.2]} 33. Kxf4 {[%clk 0:00:56.1]}
33... Rag8 {[%clk 0:01:12.6]} 34. Nf3 {[%clk 0:00:53.7]} 34... Rxh1 {[%clk
0:01:06.3]} 35. Rxh1 {[%clk 0:00:54.4]} 35... Rg2 {[%clk 0:01:00]} 36. Rh6+
{[%clk 0:00:54.7]} 36... Kg7 {[%clk 0:00:57.6]} 37. Rh2 {[%clk 0:00:52.4]} 37...
Rg4+ {[%clk 0:00:50.5]} 38. Ke3 {[%clk 0:00:52.9]} 38... f5 {[%clk 0:00:50.5]}
39. exf5 {[%clk 0:00:45.8]} 39... Bxf5 {[%clk 0:00:52.4]} 40. Nd4 {[%clk
0:00:47]} 40... Bd7 {[%clk 0:00:40.8]} 41. Kd3 {[%clk 0:00:47.1]} 41... Kf6
{[%clk 0:00:38.3]} 42. b4 {[%clk 0:00:35.4]} 42... Bb5+ {[%clk 0:00:22.3]} 43.
Nxb5 {[%clk 0:00:12.4]} 43... axb5 {[%clk 0:00:22.4]} 44. Rh7 {[%clk 0:00:12.5]}
44... Rg3+ {[%clk 0:00:23.2]} 45. Kc2 {[%clk 0:00:12.2]} 45... Rg7 {[%clk
0:00:24.1]} 46. Rxg7 {[%clk 0:00:09.2]} 46... Kxg7 {[%clk 0:00:26]} 47. c4
{[%clk 0:00:10.7]} 47... bxc4 {[%clk 0:00:03.1]} 48. b5 {[%clk 0:00:11.8]} 1-0